Cogmind - Beta 12 @@@ ROGUE MODE // 2023.04.23 @ 13:50:22 Player: Red Box Result: Smashed by cave-in Performance ------------- Evolutions (0) 0 Regions Visited (1) 200 Robots Destroyed (29) 145 Value Destroyed (496) 496 Prototype IDs (0) 0 Alien Tech Used (0) 0 Bonus (0) 0 TOTAL SCORE: 841 Bonus ------- None Cogmind --------- Core Integrity 0/250 Matter 295/300 Energy 250/250 System Corruption 4% Temperature Cool (0) Movement Rolling (145) Ox3 Location -10/Materials Parts ------- > --- POWER (1) -------- Ion Engine > --- PROPULSION (2) --- Compact Wheel > --- UTILITY (2) ------ Improved Heat Sink High-capacity Storage Unit > --- WEAPON (2) ------- Shotgun Hammer > --- INVENTORY (20) --- Ion Engine Ion Engine Light Treads Light Treads Wheel Wheel Wheel Compact Wheel Compact Wheel Large Storage Unit High-capacity Battery (250) Improved Terrain Scanner EM Pulse Gun Particle Cannon Particle Cannon Shotgun Grenade Launcher Peak State ------------ > --- POWER ------------ Ion Engine > --- PROPULSION ------- Wheel Wheel > --- UTILITY ---------- Improved Heat Sink High-capacity Storage Unit > --- WEAPON ----------- Shotgun Shotgun > --- INVENTORY -------- Ion Engine Light Treads Light Treads Wheel Wheel Wheel Compact Wheel Compact Wheel Large Storage Unit High-capacity Battery Improved Terrain Scanner EM Pulse Gun Particle Cannon Particle Cannon Grenade Launcher Hammer [Rating: 13] Favorites ----------- Power Ion Engine Engine Ion Engine Propulsion Wheel Treads Light Treads Leg Aluminum Leg Wheel Wheel Utility Improved Heat Sink Device Improved Heat Sink Storage Large Storage Unit Weapon Shotgun Energy Cannon Particle Cannon Ballistic Gun Shotgun Impact Weapon Hammer Build | -11 -10 ------- Run | Jun Mat Slots Evolved . | . . Power . | . . Propulsion . | . . Utility . | . . Weapon . | . . Parts Attached 26 | 11 15 Power 1 | 1 . Engine 1 | 1 . Core . | . . Reactor . | . . Propulsion 11 | 5 6 Treads 2 | . 2 Leg 2 | 2 . Wheel 7 | 3 4 Hover . | . . Flight . | . . Utility 7 | 3 4 Device 4 | 2 2 Storage 3 | 1 2 Processor . | . . Hackware . | . . Protection . | . . Artifact . | . . Weapon 7 | 2 5 Energy Gun . | . . Energy Cannon 2 | . 2 Ballistic Gun 4 | 2 2 Ballistic Cannon . | . . Launcher . | . . Special Weapon . | . . Impact Weapon 1 | . 1 Slashing Weapon . | . . Piercing Weapon . | . . Special Melee Weapon . | . . Unidentified Prototypes . | . . Parts Lost 3 | . 3 Power . | . . Propulsion 3 | . 3 Utility . | . . Weapon . | . . Highest Loss Streak 1 | . 1 To Critical Strikes . | . . Average Slot Usage (%) 95 | . 95 Engine 14 | . 14 Treads 1 | . 1 Wheel 22 | . 22 Device 14 | . 14 Storage 14 | . 14 Energy Cannon 11 | . 11 Ballistic Gun 16 | . 16 Naked Turns . | . . Heaviest Build 52 | 15 52 Greatest Support 40 | 20 40 Greatest Overweight (x) 5 | 1 5 Average Overweight (x) 1 | . 1 Largest Inventory Capacity 20 | 8 20 Average Capacity 14 | 7 16 Most Carried 19 | 8 19 Average Carried 13 | 5 14 Final Capacity 20 | 8 20 Final Carried 17 | 8 17 Class Distribution -------------------- 100% | Mutant Dominant Class ---------------- Mutant | -10/Materials Resources | -11 -10 ----------- Run | Jun Mat Matter Collected 795 | 426 369 Remotely . | . . Salvage Created 915 | 235 680 Parts 63 | 23 40 Haulers Intercepted 1 | . 1 Recyclers Shooed 1 | . 1 Parts Field Recycled . | . . Retrieved Matter . | . . Parts Self-Destructed . | . . Prevented . | . . Kills | -11 -10 ------- Run | Jun Mat Combat Hostiles Destroyed 15 | . 15 Guns 8 | . 8 Cannons 6 | . 6 Classes Destroyed 7 | 2 5 Builder 1 | . 1 Tunneler 8 | 8 . Hauler 1 | . 1 Recycler 3 | 1 2 Watcher 1 | . 1 Swarmer 6 | . 6 Grunt 9 | . 9 Best Kill Streak 4 | 3 4 Combat Bots Only 3 | . 3 Max Kills in Single Turn 1 | 1 1 Gunslinging . | . . Exploded . | . . Melee . | . . Uniques/NPCs Destroyed . | . . Combat | -11 -10 -------- Run | Jun Mat Damage Taken 768 | . 768 Core 255 | . 255 Absorbed by Shields . | . . Core Remaining (%) 100 | 100 . Volleys Fired 72 | 23 49 Largest 2 | 2 2 Hottest 136 | 40 136 Shots Fired 144 | 46 98 Gun 104 | 46 58 Cannon 40 | . 40 Launcher . | . . Special . | . . Kinetic 104 | 46 58 Thermal 40 | . 40 Explosive . | . . Electromagnetic . | . . Robot Hit Streak 9 | 6 9 Robot Miss Streak 5 | 2 5 Penetration Max . | . . Secondary Targets . | . . Shots Hit Robots 89 | 28 61 Core Hits 38 | 10 28 Critical Kills 1 | . 1 Critical Parts Destroyed . | . . Critical Strikes 1 | . 1 Meltdown 1 | . 1 Melee Attacks 3 | . 3 Impact 3 | . 3 Slashing . | . . Piercing . | . . Sneak Attacks . | . . Combat Hostiles . | . . Follow-up Attacks . | . . Damage Inflicted 1389 | 379 1010 Guns 939 | 379 560 Cannons 450 | . 450 Explosions . | . . Melee . | . . Ramming . | . . Kinetic 939 | 379 560 Thermal 450 | . 450 Explosive . | . . Electromagnetic . | . . Impact . | . . Slashing . | . . Piercing . | . . Highest Corruption . | . . Average Corruption . | . . Corruption Purged . | . . Corruption Blocked . | . . Overload Shots . | . . Overflow Damage . | . . Projectiles . | . . Explosions . | . . Melee . | . . Knockbacks . | . . Impact . | . . Kinetic . | . . Secondary . | . . Self-Inflicted Damage . | . . Shots . | . . Rammed . | . . Targets Rammed . | . . Kicked . | . . Crushed . | . . Highest Temperature 225 | 6 225 Average Temperature 86 | 6 87 Received Heat Transfer 180 | . 180 Siege Activations . | . . Robots Corrupted . | . . Combat Hostiles . | . . Parts Fried . | . . Impact Corruptions . | . . Robots Melted 1 | . 1 Combat Hostiles 1 | . 1 Parts Melted 3 | . 3 Heat Transferred 814 | . 814 Parts Sabotaged . | . . Parts Stolen . | . . Parts Stripped . | . . Power Chain Reactions . | . . Missiles Intercepted . | . . Alert | -11 -10 ------- Run | Jun Mat Peak Influence 362 | 45 362 Initial 29 | . 29 Average 185 | 19 223 Maximum Alert Level 1 | . 1 Low Security (%) 45 | 100 33 Level 1 54 | . 66 Level 2 . | . . Level 3 . | . . Level 4 . | . . Level 5 . | . . High Security . | . . Max Security . | . . Squads Dispatched 4 | . 4 Investigation 3 | . 3 Extermination . | . . Reinforcement 1 | . 1 Assault . | . . Garrison . | . . Intercept . | . . Searches Triggered . | . . Construction Impeded . | . . Haulers Reinforced . | . . Active Scanning Responses . | . . Cargo Convoy Interrupts . | . . Stealth | -11 -10 --------- Run | Jun Mat Distress Signals . | . . Communications Jammed . | . . Distress Signals . | . . Times Spotted 26 | . 26 Peak Tracking Total 4 | . 4 Tactical Retreats 1 | . 1 Traps | -11 -10 ------- Run | Jun Mat Traps Triggered 1 | . 1 Indirectly . | . . Trap Hack Attempts . | . . Triggered . | . . Disarmed . | . . Reprogrammed . | . . Reused . | . . Traps Extracted . | . . Installed . | . . Triggered . | . . Machines | -11 -10 ---------- Run | Jun Mat Machines Disabled 2 | . 2 Max in Single Turn 1 | . 1 Machines Repaired . | . . Machines Sabotaged . | . . Overloaded Fab Kills . | . . Hacking | -11 -10 --------- Run | Jun Mat Machines Accessed 8 | . 8 Terminals 6 | . 6 Fabricators . | . . Repair Stations . | . . Recycling Units 2 | . 2 Scanalyzers . | . . Garrison Access . | . . Total Hacks 24 | . 24 Successful 11 | . 11 Failed 12 | . 12 Catastrophic . | . . Database Lockouts 1 | . 1 Manual 13 | . 13 Terminals 19 | . 19 Fabricators . | . . Repair Stations . | . . Recycling Units 5 | . 5 Scanalyzers . | . . Garrison Access . | . . Terminal Hacks 5 | . 5 Robot Analysis 1 | . 1 Terminal Index 1 | . 1 Locate Traps 1 | . 1 Recall Reinforcements 1 | . 1 Hauler Manifests 1 | . 1 Fabricator Hacks . | . . Repair Station Hacks . | . . Recycling Unit Hacks 1 | . 1 Retrieve Components 1 | . 1 Scanalyzer . | . . Garrison Access Hacks . | . . Unauthorized Hacks 5 | . 5 Terminals 3 | . 3 Track 1 | . 1 Botnet 2 | . 2 Fabricators . | . . Repair Stations . | . . Recycling Units 2 | . 2 Tunnel 2 | . 2 Scanalyzers . | . . Garrison Access . | . . Data Cores Recovered . | . . Used . | . . Hacking Detections 8 | . 8 Full Trace Events . | . . Feedback Events . | . . Feedback Blocked . | . . Robot Schematics Acquired . | . . Robots Built . | . . Authchips . | . . Time . | . . Total Robot Build Rating . | . . Part Schematics Acquired . | . . Parts Built . | . . Authchips . | . . Time . | . . Total Part Build Rating . | . . Parts Repaired . | . . Time . | . . Parts Recycled . | . . Recycled Matter . | . . Retrieved Matter . | . . Retrieved Components 10 | . 10 Parts Scanalyzed . | . . Part Schematics Acquired . | . . Parts Damaged . | . . Bothacking | -11 -10 ------------ Run | Jun Mat Used RIF Installer . | . . Robots Hacked . | . . Non-combat . | . . Combat . | . . Robot Hacks Applied . | . . Relay Couplers Released . | . . Fabnet Peak Effective % . | . . Robots Rewired . | . . Allies Hacked . | . . Hacks Repelled . | . . Allies | -11 -10 -------- Run | Jun Mat Total Allies . | . . Largest Group . | . . Highest-Rated Group . | . . Highest-Rated Ally . | . . Total Orders . | . . Ally Attacks . | . . Total Damage . | . . Kills . | . . Allies Corrupted . | . . Allies Melted . | . . Intel | -11 -10 ------- Run | Jun Mat Robot Analysis Total 1 | . 1 Derelict Logs Recovered . | . . Drone Launches . | . . Drone Recoveries . | . . Exploration | -11 -10 ------------- Run | Jun Mat Turns Passed 1210 | 227 983 Spaces Moved 790 | 135 655 Core 10 | 10 . Treads 4 | . 4 Legs 25 | 25 . Wheels 751 | 100 651 Hover . | . . Flight . | . . Fastest Speed 50 | 50 80 Average Speed 105 | 85 109 Slowest Speed 160 | 120 160 Overloaded Moves . | . . Propulsion Burnouts . | . . Robots Hopped . | . . Cave-ins Triggered 1 | . 1 Exploration Rate (%) 45 | 4 86 Regions Visited 1 Branch Regions . Pre-discovered Areas 2 | . 2 Known Exits Taken . | . . Unknown Exits Taken 1 | 1 . Scrap Searched . | . . Spaces Dug 2 | . 2 Terrain Destroyed 2 | . 2 Melee 2 | . 2 Projectile . | . . AOE . | . . Terrain Rammed . | . . Walls Destroyed . | . . Machines Disabled . | . . Actions | -11 -10 --------- Run | Jun Mat Total 1018 | 198 820 Wait 82 | 16 66 Move 789 | 134 655 Hop . | . . Pick Up 28 | 8 20 Fast Attach 10 | 9 1 Attach 4 | . 4 Detach 2 | 2 . Swap 12 | 2 10 Drop 16 | 4 12 Fire 72 | 23 49 Melee 3 | . 3 Ram . | . . Kick . | . . Crush . | . . Escape Stasis . | . . Rewire . | . . Trap . | . . Miscellaneous . | . . Route ------- -11/Junkyard -10/Materials (discovered 3 exits: [*Mat x2] / [*Min]) History --------- Turn | Location | Event 10 | -11/Junkyard | Discovered new exit (range 15) 228 | -11/Junkyard | Entered Materials 259 | -10/Materials | Discovered new exit (range 12) 302 | -10/Materials | Build established: Mutant 965 | -10/Materials | Discovered new exit (range 16) 1150 | -10/Materials | Discovered new exit (range 14) 1170 | -10/Materials | Central database locked down 1212 | -10/Materials | Crushed by falling debris 1212 | -10/Materials | Smashed by cave-in Last Messages --------------- Aluminum Leg Welding Torch Sml. Laser Aluminum Leg Terrain Scan Processor Flight Unit Aluminum Leg Particle Gun Lgt. Assault Rifle Aluminum Leg 01195_ Connecting with Recycling Unit... >>Force(Tunnel) DISCOVERED[-10/Mines] 01195_ ALERT: Suspicious activity at Recycling Unit M001. Dispatching Investigation squad. 01197_ K-01 Serf collects debris. 01212_ The unstable cave ceiling collapses. 01212_ Crushed by falling debris. 01212_ Com. Wheel destroyed. 01212_ System corrupted by crushing effect (+4). Map ----- +----------------------------------------------------+ | ???????### ########### """" + ####+###### | | ????????## % + "" # ## #### | | ?????????# ########### =% # ## | | ??????#??# ##! """ # %[ # ## != | | ?????????## ### """ # = # ## == | | ??????????# #?# """ ########### ## ###+ | | ??????????+ #?# #?????????# ### ### ! | | ??????????# #?# #?????????# #?# #?# = | | ??????????# #########+############ #?# #?# | | ??????????# ### #?# | | ??????????# % #?# | | ???######## #?# ] | | ???# # ############## ## #?# | | ???# ] # #????????????# ## #######?### | | ???#! ! # #????????????#[[[[==# # ??????? | | ???# # r#????????????#[[[[==# # "??? ?#? | | ???# + ###########??######## # """ #? | | ???# # ## #?????????# # """ #? | | ???##+##### u## """ #?????????# # #? | | ????# #### # """ #?########## ## """ #? | | ????# # """ #?# # ## """ #? | | ????# T + === #?# """"" # ## """ #? | | ????# # [%=""" #?# """"" # ##== #? | | #######+## # [==Y" ### """"" # ##/######## | | # ## ## !k[""" ;## """"" # % # # | | # """ ## ## !! #@# """"" + # # | | # "T" ## ############# """"" # # =!# | | # ## < #???????????# """"" # < # !%=# | | # ## #???????????# # # *! # | | # """"" ######?????????############ + [ # | | # """"" #??????????????# ##### # ! # | | # """"" #??????????????# + # ! # | | # #??????????????# =############## # | | ##########??????????????# ===#????????????###### | | ????????????????????????# ===#?????????????????# | | ????????????????????????# == #?????????????????? | | ????????????????????????########?????????????????? | | ?????????????????????????????????????????????????? | | | | | | | | | | | | | | | | | | | | | | | | | +----------------------------------------------------+ Best States ------------- Heat Dissipation 39 Energy Generation 10 Energy Capacity 250 Matter Stores 300 Matter Capacity 300 Sight Range 16 Terrain Scan Range 16 Terrain Scan Density 10 Evasion (%) 50 Recoil Reduction 2 Item Schematics ----------------- None Robot Schematics ------------------ None Fabricated ------------ Nothing Alien Tech Used ----------------- None Achievements -------------- None Challenges ------------ None Game ------ Seed ConstructCannonStabilizer Manual? 0 Play Time 00:13:01 Cumulative 643.5 hours Start 2023.04.22 @ 23:47:10 End 2023.04.23 @ 13:50:22 Sessions 1 Manual Loads 0 Difficulty Rogue Special Mode None Game No. 435 Rogue 435 Adventurer 0 Explorer 0 Win Type - Total 1 Types 1/0/0/0/0/0/0/0/0 Lore% 71 Gallery% 79 Achievement% 60 Wizard Run 0 Options --------- ASCII 0 Keyboard 0 Movement Mouse Keybinds 0 Fullscreen 1 Font 16/SmallcapsGlow Map View 75x55 Tactical HUD 1 Map Filters NONE Filters NONE Steam 1 RUN: 1156be56-2a1d-4ccc-a1e6-29ab6dc715e6